bitfinex-derivatives/quotes_BTCF0:USTF0_20240913
["timestamp","ask_amount","ask_price","bid_price","bid_amount"]
[1726243800746,0.3608,59762.0,59761.0,0.001]
[1726243802253,0.3638,59762.0,59761.0,0.001]
[1726243802760,0.3648,59762.0,59761.0,0.002]
[1726243803643,0.3648,59762.0,59761.0,0.272]
[1726243803949,0.3618,59762.0,59761.0,0.355645]
[1726243804253,0.3618,59762.0,59761.0,0.085645]
[1726243804641,0.3618,59762.0,59761.0,0.084645]
[1726243804949,0.3618,59762.0,59761.0,0.355645]
[1726243805342,0.3618,59762.0,59761.0,1.457645]
[1726243805549,0.3618,59762.0,59761.0,0.355645]
[1726243806055,0.3618,59762.0,59761.0,0.002]
[1726243806252,0.3608,59762.0,59761.0,0.001]
[1726243806452,0.3608,59762.0,59746.0,0.0482234]
[1726243806453,1.4638,59762.0,59742.0,0.0482234]
[1726243806755,1.4638,59762.0,59741.0,0.0039]
[1726243806756,0.3608,59750.0,59749.0,0.083661]
[1726243806951,0.7216,59750.0,59749.0,0.083661]
[1726243807146,0.7216,59750.0,59736.0,0.4743]
[1726243807147,0.7216,59750.0,59745.0,0.083667]
[1726243807341,0.27,59747.0,59734.0,0.0482234]
[1726243807550,0.3608,59735.0,59734.0,0.083683]
[1726243807747,0.31056193,59735.0,59734.0,0.083683]
[1726243808052,0.3608,59735.0,59733.0,0.0482234]
[1726243808255,0.3608,59735.0,59723.0,0.2043]
[1726243808256,0.50224,59734.0,59727.0,0.0482234]
[1726243808447,0.3608,59728.0,59724.0,0.0482234]
[1726243808649,0.3608,59728.0,59724.0,0.083697]
[1726243808855,0.3608,59728.0,59725.0,0.0482234]
[1726243809050,0.3608,59728.0,59724.0,0.0482234]
[1726243809259,0.30218347,59728.0,59727.0,0.083693]
[1726243809556,0.30218347,59728.0,59721.0,0.3182234]
[1726243809557,0.30218347,59728.0,59721.0,0.0482234]
[1726243809746,0.3608,59727.0,59724.0,0.001]
[1726243809947,0.27,59725.0,59724.0,0.001]
[1726243810147,0.27,59725.0,59716.0,0.083708]
[1726243810346,0.3608,59720.0,59716.0,0.083708]
[1726243810754,0.3608,59720.0,59718.0,0.083705]
[1726243811655,0.3608,59720.0,59713.0,0.1319354]
[1726243811855,0.3608,59715.0,59714.0,0.08371]
[1726243812450,0.3608,59715.0,59700.0,0.08014362]
[1726243812451,0.3608,59715.0,59705.0,0.0482234]
[1726243812957,0.3608,59715.0,59713.0,0.001]
[1726243813163,0.3608,59715.0,59713.0,0.084712]
[1726243813860,0.31891692,59715.0,59713.0,0.084712]
[1726243814160,0.31891692,59715.0,59713.0,0.083712]
[1726243814357,0.31891692,59715.0,59714.0,0.001]
[1726243814358,0.32191692,59715.0,59714.0,0.001]
[1726243815159,0.32391692,59715.0,59714.0,0.001]
[1726243815359,0.32391692,59715.0,59714.0,0.084711]
[1726243815763,0.32091692,59715.0,59714.0,0.083711]
[1726243815954,0.32391692,59715.0,59714.0,0.083711]
[1726243816863,0.32491692,59715.0,59714.0,0.083711]
[1726243817065,0.32491692,59715.0,59714.0,0.354711]
[1726243818154,0.32491692,59715.0,59714.0,0.084711]
[1726243819066,0.32491692,59715.0,59714.0,0.354711]
[1726243819265,0.32491692,59715.0,59714.0,0.084711]
[1726243820060,0.006,59715.0,59714.0,0.084711]
[1726243820365,0.3668,59715.0,59714.0,0.084711]
[1726243820864,0.277442,59715.0,59714.0,0.084711]
[1726243824373,0.00734578,59720.0,59719.0,0.083704]
[1726243824573,0.3608,59724.0,59723.0,0.083698]
[1726243825261,0.73012359,59724.0,59717.0,0.083706]
[1726243825577,0.3608,59718.0,59717.0,0.083706]
[1726243826779,0.3608,59718.0,59717.0,0.084706]
[1726243826970,0.001,59720.0,59719.0,0.083704]
[1726243827162,0.00947097,59720.0,59719.0,0.353704]
[1726243827361,0.3608,59724.0,59723.0,0.083698]
[1726243827773,0.36943918,59724.0,59723.0,0.083698]
[1726243828470,0.00863918,59724.0,59723.0,0.167396]
[1726243828667,0.3608,59733.0,59732.0,0.083686]
[1726243828975,0.36928736,59733.0,59732.0,0.083686]
[1726243829781,0.36928736,59733.0,59732.0,0.084686]
[1726243830169,0.63928736,59733.0,59708.0,0.0045]
[1726243830471,0.63928736,59733.0,59726.0,0.083694]
[1726243830472,0.3608,59727.0,59726.0,0.083694]
[1726243830871,0.3608,59727.0,59721.0,0.083701]
[1726243831068,0.3608,59722.0,59721.0,0.083701]
[1726243831877,0.3608,59722.0,59709.0,0.003]
[1726243832175,0.3608,59716.0,59715.0,0.08371]
[1726243833277,0.3618,59722.0,59709.0,0.004]
[1726243833573,0.3608,59722.0,59709.0,0.003]
[1726243833773,0.002,59716.0,59715.0,0.08471]
[1726243834379,0.3628,59716.0,59715.0,0.08471]
[1726243835272,0.3658,59716.0,59715.0,0.08471]
[1726243835575,0.00882118,59722.0,59721.0,0.083701]
[1726243835770,0.3608,59728.0,59716.0,0.083708]
[1726243835771,0.3608,59728.0,59727.0,0.083693]
[1726243836778,0.36931661,59728.0,59727.0,0.083693]
[1726243836972,0.37031661,59728.0,59727.0,0.084693]
[1726243838271,0.37031661,59728.0,59727.0,0.001]
[1726243838471,0.64031661,59728.0,59727.0,0.001]
[1726243838871,0.64031661,59728.0,59727.0,0.002]
[1726243839967,0.37031661,59728.0,59727.0,0.002]
[1726243841280,0.37031661,59728.0,59727.0,0.085693]
[1726243842468,0.37031661,59728.0,59727.0,0.857973]
[1726243842469,0.00951661,59728.0,59727.0,0.857973]
[1726243842670,0.001,59728.0,59727.0,0.857973]
[1726243842871,0.001,59728.0,59727.0,0.085693]
[1726243844475,0.001,59728.0,59727.0,1.187973]
[1726243844878,0.001,59728.0,59727.0,1.541666]
[1726243845379,0.001,59728.0,59727.0,1.902466]
[1726243845876,1e-06,59728.0,59727.0,1.96708249]
[1726243846076,0.3608,59739.0,59738.0,0.083677]
[1726243846271,0.3608,59739.0,59738.0,0.353677]
[1726243846478,0.3608,59739.0,59738.0,1.455877]
[1726243846885,0.3608,59739.0,59738.0,1.185877]
[1726243847076,0.3608,59746.0,59745.0,0.083668]
[1726243847775,0.00876739,59746.0,59745.0,0.083668]
[1726243847971,0.3608,59753.0,59738.0,0.05074099]
[1726243848280,0.3608,59761.0,59752.0,0.27]
[1726243848583,0.36933882,59761.0,59749.0,0.3608]
[1726243848799,0.36933882,59761.0,59748.0,0.27]
[1726243848988,0.36933882,59761.0,59755.0,0.083653]
[1726243849185,0.36933882,59761.0,59756.0,0.083652]
[1726243849374,0.36933882,59761.0,59748.0,0.27]
[1726243849579,0.36933882,59761.0,59755.0,0.083653]
[1726243849778,0.36933882,59761.0,59756.0,0.083652]
[1726243849989,0.36933882,59761.0,59745.0,0.002]
[1726243849990,0.36933882,59761.0,59747.0,0.27]
[1726243850190,0.36933882,59761.0,59755.0,0.001]
[1726243850492,0.36933882,59761.0,59756.0,0.083652]
[1726243850681,0.36933882,59761.0,59759.0,0.083648]
[1726243852588,0.36933882,59761.0,59759.0,0.001]
[1726243852790,0.36933882,59761.0,59759.0,0.002]
[1726243853289,0.87133882,59761.0,59759.0,0.002]
[1726243853878,1.47133882,59761.0,59759.0,0.002]
[1726243854093,0.502,59760.0,59740.0,0.27]
[1726243854290,0.3608,59750.0,59749.0,0.083662]
[1726243856177,0.3608,59750.0,59749.0,0.084662]
[1726243856884,0.36922089,59750.0,59749.0,0.084662]
[1726243857186,0.36922089,59750.0,59749.0,0.085662]
[1726243858392,0.36922089,59750.0,59749.0,0.002]
[1726243858584,0.59202089,59750.0,59749.0,0.002]
[1726243860388,1.69410089,59750.0,59724.0,0.62894099]
[1726243860599,0.3608,59733.0,59729.0,0.27]
[1726243860899,0.31893563,59733.0,59732.0,0.083686]
[1726243861104,0.36931463,59740.0,59732.0,0.083686]
[1726243861105,0.3608,59740.0,59739.0,0.083676]
[1726243861391,0.3608,59740.0,59739.0,0.353676]
[1726243861990,0.3608,59740.0,59739.0,0.855876]
[1726243863100,0.36044924,59740.0,59739.0,0.855876]
[1726243863299,0.36044924,59740.0,59739.0,0.856876]
[1726243863500,0.3689586,59740.0,59739.0,0.856876]
[1726243863801,0.3608,59749.0,59748.0,0.083663]
[1726243864099,0.3608,59749.0,59748.0,0.353663]
[1726243864994,0.37161373,59749.0,59748.0,0.354663]
[1726243865809,0.37161373,59749.0,59748.0,0.085663]
[1726243867204,0.3608,59777.0,59748.0,1.73492]
[1726243867394,0.3608,59777.0,59776.0,0.083624]
[1726243867697,0.36907858,59777.0,59776.0,0.083624]
[1726243867997,0.36907858,59777.0,59771.0,0.083631]
[1726243867998,0.37770628,59777.0,59771.0,0.083631]
[1726243868196,0.37770628,59777.0,59760.0,0.4174]
[1726243868503,0.37770628,59777.0,59765.0,0.27]
[1726243868992,0.37770628,59777.0,59776.0,0.001]
[1726243869195,1.47958628,59777.0,59776.0,0.001]
[1726243869500,1.47958628,59777.0,59758.0,0.3608]
[1726243869700,0.3608,59771.0,59769.0,0.083633]
[1726243870006,0.27,59770.0,59748.0,0.05074099]
[1726243870194,0.3608,59749.0,59748.0,0.002]
[1726243870800,0.3608,59750.0,59744.0,0.27]
[1726243870997,0.3608,59757.0,59756.0,0.083652]
[1726243871191,0.3608,59757.0,59750.0,0.08366]
[1726243871392,0.3608,59751.0,59750.0,0.08366]
[1726243871794,0.6308,59751.0,59748.0,0.003]
[1726243871995,0.6308,59749.0,59729.0,0.04874099]
[1726243872198,0.27,59740.0,59737.0,0.083678]
[1726243872389,0.3608,59741.0,59740.0,0.083675]
[1726243872589,0.36912797,59741.0,59740.0,0.083675]
[1726243873606,0.37768555,59741.0,59740.0,0.083675]
[1726243874100,1.74984555,59741.0,59737.0,0.001]
[1726243874296,1.74984555,59741.0,59723.0,0.3608]
[1726243874297,0.863,59740.0,59723.0,0.3608]
[1726243874497,0.3608,59732.0,59723.0,0.3608]
[1726243875003,0.3608,59724.0,59717.0,0.3608]
[1726243875194,0.3608,59724.0,59710.0,0.04874099]
[1726243875195,0.27,59718.0,59710.0,0.04874099]
[1726243875394,0.6308,59718.0,59711.0,0.3608]
[1726243875701,0.3608,59718.0,59711.0,0.3608]
[1726243875914,0.3608,59718.0,59717.0,0.083707]
[1726243876404,0.37055087,59718.0,59717.0,0.083707]
[1726243877796,0.00675087,59718.0,59717.0,1.186067]
[1726243877993,0.002,59724.0,59723.0,0.083698]
[1726243878205,0.002,59724.0,59723.0,0.444498]
[1726243878398,0.3608,59731.0,59730.0,0.083689]
[1726243878804,0.36959739,59731.0,59730.0,0.083689]
[1726243879808,0.37259739,59731.0,59730.0,0.084689]
[1726243880906,0.37459739,59731.0,59730.0,0.085689]
[1726243881703,0.36959739,59731.0,59730.0,0.084689]
[1726243881894,0.37159739,59731.0,59730.0,0.085689]
[1726243882296,0.37159739,59731.0,59730.0,0.002]
[1726243882700,0.87383739,59731.0,59730.0,0.002]
[1726243883304,0.87383739,59731.0,59713.0,0.3608]
[1726243883305,1.47383739,59731.0,59713.0,0.3608]
[1726243883510,1.47383739,59731.0,59711.0,0.2739]
[1726243883511,0.6308,59722.0,59712.0,0.3608]
[1726243883809,0.2203,59721.0,59712.0,0.3608]
[1726243884109,0.2203,59721.0,59718.0,0.083704]
[1726243884806,0.2203,59721.0,59712.0,0.3608]
[1726243885011,0.2203,59721.0,59708.0,0.04874099]
[1726243885316,0.2213,59721.0,59714.0,0.083711]
[1726243885508,0.2233,59721.0,59718.0,0.001]
[1726243885705,0.2233,59721.0,59718.0,0.002]
[1726243886411,0.1997,59720.0,59718.0,0.002]
[1726243887312,0.01169219,59721.0,59720.0,0.083703]
[1726243887514,0.01069219,59721.0,59720.0,0.083703]
[1726243887699,0.01169219,59721.0,59720.0,0.083703]
[1726243888209,0.00969219,59721.0,59720.0,0.083703]
[1726243888716,0.01269219,59721.0,59720.0,0.084703]
[1726243888900,0.01269219,59721.0,59720.0,0.085703]
[1726243888901,0.01469219,59721.0,59720.0,0.085703]
[1726243889804,0.01469219,59721.0,59708.0,0.3608]
[1726243889805,1.11705219,59721.0,59708.0,0.3608]
[1726243890001,0.01469219,59721.0,59708.0,0.3608]
[1726243890211,0.01469219,59721.0,59718.0,0.083705]
[1726243890414,0.01469219,59721.0,59713.0,0.083712]
[1726243890710,0.01469219,59721.0,59713.0,0.3608]
[1726243890915,0.01069219,59721.0,59713.0,0.3608]
[1726243891110,0.6308,59717.0,59708.0,0.084719]
[1726243891309,0.6308,59717.0,59709.0,0.083717]
[1726243891513,0.3608,59717.0,59716.0,0.083708]
[1726243892315,0.01369219,59721.0,59716.0,0.083708]
[1726243892503,0.01169219,59721.0,59720.0,0.083703]
[1726243893907,0.00869219,59721.0,59720.0,0.083703]
[1726243894109,0.3608,59724.0,59721.0,0.083701]
[1726243894310,0.3608,59724.0,59722.0,0.0837]
[1726243894505,0.3608,59724.0,59723.0,0.083698]
[1726243895310,0.36967197,59724.0,59723.0,0.083698]
[1726243895515,0.37267197,59724.0,59723.0,0.083698]
[1726243897218,0.37667197,59724.0,59723.0,0.084698]
[1726243898410,0.37267197,59724.0,59723.0,0.084698]
[1726243898618,0.37667197,59724.0,59723.0,0.085698]
[1726243899215,0.37667197,59724.0,59723.0,0.002]
[1726243900516,1.14899197,59724.0,59723.0,0.002]
[1726243900824,1.74899197,59724.0,59723.0,0.002]
[1726243901420,1.74899197,59724.0,59705.0,0.27]
[1726243901614,0.3608,59716.0,59709.0,0.27]
[1726243901822,0.3608,59716.0,59710.0,0.3608]
[1726243902412,0.3608,59716.0,59715.0,0.083718]
[1726243903818,0.3638,59716.0,59715.0,0.083718]
[1726243904526,0.3678,59716.0,59715.0,0.084718]
[1726243904726,0.37677637,59716.0,59715.0,0.084718]
[1726243905027,0.37777637,59716.0,59715.0,0.084718]
[1726243906518,0.37877637,59716.0,59715.0,0.085718]
[1726243907354,0.73957637,59716.0,59715.0,0.002]
[1726243907926,1.24197637,59716.0,59715.0,0.002]
[1726243908330,1.84197637,59716.0,59699.0,0.04874099]
[1726243908524,0.27,59713.0,59706.0,0.083729]
[1726243908722,0.27,59713.0,59696.0,0.04874099]
[1726243908723,0.3608,59713.0,59704.0,0.3608]
[1726243908924,0.3608,59705.0,59694.0,0.42578799]
[1726243909123,0.3608,59705.0,59700.0,0.083739]
[1726243909339,0.3608,59705.0,59696.0,0.27]
[1726243909340,0.36917225,59705.0,59696.0,0.27]
[1726243910134,0.36917225,59705.0,59694.0,0.3608]
[1726243910478,0.00837225,59705.0,59704.0,0.083733]
[1726243910640,0.2123,59706.0,59694.0,0.3608]
[1726243910641,0.2123,59706.0,59698.0,0.083741]
[1726243910827,0.22093192,59706.0,59699.0,0.005]
[1726243911024,0.3608,59700.0,59699.0,0.006]
[1726243911324,0.3608,59700.0,59699.0,0.001]
[1726243911527,0.3608,59700.0,59691.0,0.083751]
[1726243911832,0.3608,59692.0,59686.0,0.083758]
[1726243912027,0.3608,59687.0,59676.0,0.04874099]
[1726243912227,0.3608,59687.0,59667.0,0.3692]
[1726243912228,0.00845321,59692.0,59690.0,0.083753]
[1726243912423,0.7216,59695.0,59694.0,0.083747]
[1726243912930,0.014,59700.0,59695.0,0.083746]
[1726243912931,0.0085261,59697.0,59695.0,0.083746]
[1726243913137,0.014,59700.0,59698.0,0.083741]
[1726243913327,0.3608,59699.0,59686.0,0.2219]
[1726243913542,0.3608,59690.0,59689.0,0.083754]
[1726243914444,0.028,59700.0,59698.0,0.084742]
[1726243914735,0.3608,59699.0,59698.0,0.084742]
[1726243914929,0.36901193,59699.0,59698.0,0.084742]
[1726243915126,0.00821193,59699.0,59698.0,0.084742]
[1726243915337,0.02285194,59700.0,59698.0,0.084742]
[1726243915732,0.02285194,59700.0,59687.0,0.083757]
[1726243915733,0.27,59699.0,59687.0,0.083757]
[1726243915934,0.3608,59689.0,59688.0,0.083756]
[1726243916626,0.3608,59689.0,59678.0,0.2249]
[1726243916627,0.7216,59689.0,59678.0,0.2249]
[1726243916827,0.3608,59684.0,59683.0,0.083763]
[1726243918128,0.3748,59684.0,59683.0,0.084763]
[1726243918336,0.3798,59684.0,59683.0,0.084763]
[1726243919528,0.3798,59684.0,59683.0,0.001]
[1726243920138,0.6498,59684.0,59683.0,0.001]
[1726243920432,1.15244,59684.0,59683.0,0.001]
[1726243920638,0.3798,59684.0,59683.0,0.001]
[1726243921623,0.3798,59684.0,59683.0,0.084763]
[1726243923137,0.3798,59684.0,59683.0,0.001]
[1726243923849,0.3798,59684.0,59683.0,0.354763]
[1726243924063,0.019,59684.0,59683.0,0.715563]
[1726243924230,0.015,59684.0,59683.0,0.715563]
[1726243924426,0.015,59684.0,59683.0,0.445563]
[1726243925341,0.015,59684.0,59683.0,0.715563]
[1726243926848,0.3608,59708.0,59707.0,0.083729]
[1726243927045,0.36905091,59708.0,59707.0,0.083729]
[1726243927631,0.36905091,59708.0,59699.0,0.27]
[1726243927945,0.3608,59708.0,59699.0,0.27]
[1726243928138,0.3696384,59708.0,59699.0,0.27]
[1726243928729,0.0088384,59708.0,59703.0,0.27]
[1726243928930,0.36913219,59714.0,59705.0,0.3608]
[1726243929143,0.36913219,59714.0,59708.0,0.083727]
[1726243929443,0.014,59708.0,59700.0,0.3608]
[1726243929641,0.27,59704.0,59697.0,0.083743]
[1726243929829,0.27,59704.0,59699.0,0.08374]
[1726243930036,0.018,59708.0,59701.0,0.083737]
[1726243930037,0.288,59708.0,59701.0,0.083737]
[1726243930231,0.288,59708.0,59702.0,0.083736]
[1726243930542,0.27,59708.0,59700.0,0.001]
[1726243931361,0.014,59708.0,59704.0,0.083733]
[1726243931560,0.02257575,59708.0,59704.0,0.083733]
[1726243932337,0.3608,59706.0,59701.0,0.001]
[1726243932647,0.3608,59706.0,59685.0,0.05264099]
[1726243932648,0.6308,59702.0,59690.0,0.083752]
[1726243932849,0.27,59694.0,59677.0,0.79882]
[1726243933043,0.3608,59692.0,59677.0,0.7938]
[1726243933449,0.3608,59692.0,59682.0,0.3608]
[1726243933840,0.3608,59692.0,59690.0,0.001]
[1726243934044,0.27,59691.0,59690.0,0.001]
[1726243934747,0.27,59691.0,59677.0,0.3608]
[1726243934947,0.3608,59686.0,59677.0,0.3608]
[1726243935159,0.3608,59686.0,59683.0,0.083762]
[1726243935335,0.3608,59686.0,59682.0,0.001]
[1726243935336,0.3608,59686.0,59684.0,0.083761]
[1726243935536,0.3608,59686.0,59685.0,0.08376]
[1726243937448,0.3658,59686.0,59685.0,0.08376]
[1726243937948,0.006,59686.0,59685.0,0.08376]
[1726243938152,0.011,59686.0,59685.0,0.44556]
[1726243938662,0.011,59686.0,59685.0,0.001]
[1726243938663,0.28964999,59686.0,59685.0,0.001]
[1726243940249,0.01964999,59686.0,59685.0,0.08476]
[1726243941556,0.01964999,59686.0,59685.0,0.001]
[1726243941788,0.01964999,59686.0,59685.0,0.08476]
[1726243942243,0.01964999,59686.0,59685.0,0.001]
[1726243942441,0.24314999,59686.0,59681.0,0.083766]
[1726243942640,0.3608,59682.0,59681.0,0.083766]
[1726243944555,0.3608,59682.0,59681.0,0.084766]
[1726243944942,0.6308,59682.0,59681.0,0.001]
[1726243945142,0.6358,59682.0,59681.0,0.001]
[1726243945747,0.6358,59682.0,59674.0,0.083774]
[1726243945748,0.6378,59682.0,59674.0,0.083774]
[1726243945964,0.3608,59675.0,59674.0,0.083774]
[1726243946151,0.3608,59675.0,59673.0,0.083777]
[1726243946347,0.3608,59675.0,59674.0,0.083776]
[1726243946560,0.3608,59675.0,59660.0,0.4307]
[1726243946759,0.3608,59664.0,59660.0,0.4307]
[1726243947054,0.3608,59664.0,59663.0,0.083791]
[1726243947452,0.3608,59669.0,59666.0,0.083786]
[1726243947650,0.3608,59669.0,59660.0,0.217]
[1726243947851,0.3608,59669.0,59668.0,0.083784]
[1726243948345,0.3608,59669.0,59660.0,0.217]
[1726243948548,0.3748384,59669.0,59660.0,0.217]
[1726243949055,0.3768384,59669.0,59668.0,0.001]
[1726243949960,0.8795984,59669.0,59668.0,0.001]
[1726243950155,1.4795984,59669.0,59668.0,0.002]
[1726243950560,1.8403984,59669.0,59659.0,0.083796]
[1726243950755,0.6308,59660.0,59659.0,0.083796]
[1726243951250,0.6308,59660.0,59655.0,0.083802]
[1726243951452,0.6308,59660.0,59648.0,0.3608]
[1726243951656,0.6308,59660.0,59656.0,0.0838]
[1726243951853,0.6308,59660.0,59648.0,0.3608]
[1726243951854,0.6368,59660.0,59658.0,0.083798]
[1726243952449,0.6368,59660.0,59659.0,0.083797]
[1726243952450,0.3608,59660.0,59659.0,0.083797]
[1726243952668,0.3608,59673.0,59672.0,0.083778]
[1726243953562,0.3692954,59673.0,59672.0,0.083778]
[1726243954354,0.3822954,59673.0,59672.0,0.083778]
[1726243955053,0.3962954,59673.0,59672.0,0.083778]
[1726243955353,0.0354954,59673.0,59672.0,0.444578]
[1726243955758,0.03570662,59673.0,59672.0,0.444578]
[1726243956062,0.03570662,59673.0,59672.0,0.083778]
[1726243956262,0.03570662,59673.0,59672.0,0.444578]
[1726243956663,0.50276,59672.0,59657.0,0.04186099]
[1726243956957,0.3608,59659.0,59652.0,0.27]
[1726243957158,0.3608,59665.0,59664.0,0.08379]
[1726243957466,0.36937864,59665.0,59664.0,0.08379]
[1726243957666,0.36937864,59665.0,59645.0,0.0039]
[1726243957667,1.47217864,59665.0,59645.0,0.0039]
[1726243957881,1.47217864,59665.0,59645.0,0.083816]
[1726243957882,0.9916,59646.0,59645.0,0.083816]
[1726243958368,0.3608,59646.0,59645.0,0.083816]
[1726243958863,0.3608,59648.0,59639.0,0.2107]
[1726243959057,0.3608,59648.0,59647.0,0.083813]
[1726243959256,0.73048325,59648.0,59639.0,0.2107]
[1726243959456,0.3608,59640.0,59639.0,0.294525]
[1726243960559,0.3618,59640.0,59639.0,0.294525]
[1726243961266,0.3658,59640.0,59639.0,0.294525]
[1726243962861,0.005,59640.0,59639.0,0.294525]
[1726243963059,0.3608,59648.0,59647.0,0.083813]
[1726243963260,0.36956359,59648.0,59647.0,0.083813]
[1726243964272,0.38256359,59648.0,59647.0,0.083813]
[1726243964771,0.38256359,59648.0,59647.0,0.167626]
[1726243964772,0.013,59648.0,59647.0,0.167626]
[1726243965159,0.3778,59648.0,59647.0,0.083813]
[1726243967873,0.3788,59648.0,59647.0,0.084813]
[1726243968260,0.3648,59648.0,59647.0,0.083813]
[1726243968465,0.3788,59648.0,59647.0,0.084813]
[1726243968666,0.3858,59648.0,59647.0,0.084813]
[1726243968865,0.025,59648.0,59647.0,0.084813]
[1726243969064,0.025,59648.0,59647.0,1.271586]
[1726243969364,0.025,59648.0,59647.0,1.187773]
[1726243969976,0.014,59648.0,59647.0,0.084813]
[1726243970275,0.026,59648.0,59647.0,0.084813]
[1726243970462,0.026,59648.0,59647.0,1.187773]
[1726243971686,0.026,59648.0,59647.0,1.186773]
[1726243971974,0.026,59648.0,59647.0,0.083813]
[1726243973668,0.012,59648.0,59645.0,0.083816]
[1726243973870,0.026,59648.0,59645.0,0.083816]
[1726243974968,0.026,59648.0,59647.0,0.167626]
[1726243975363,0.026,59648.0,59647.0,1.270586]
[1726243975564,0.3608,59660.0,59653.0,0.16761]
[1726243975769,0.3608,59669.0,59668.0,0.083784]
[1726243975974,0.36916871,59669.0,59659.0,0.3608]
[1726243976173,0.36916871,59669.0,59654.0,0.634]
[1726243976174,0.36916871,59669.0,59657.0,0.3608]
[1726243976371,0.36916871,59669.0,59667.0,0.083785]
[1726243976578,0.36916871,59669.0,59662.0,0.083792]
[1726243976775,0.37830943,59669.0,59654.0,0.63484]
[1726243976977,0.37830943,59669.0,59668.0,0.083784]
[1726243977968,0.37830943,59669.0,59654.0,0.634]
[1726243978277,0.3608,59664.0,59663.0,0.083791]
[1726243979981,0.3608,59664.0,59663.0,0.084791]
[1726243979982,0.3668,59664.0,59663.0,0.084791]
[1726243980878,0.3668,59664.0,59663.0,0.001]
[1726243981070,0.3778,59664.0,59663.0,0.002]
[1726243981675,0.8806,59664.0,59663.0,0.002]
[1726243981882,1.4806,59664.0,59651.0,0.083807]
[1726243982182,0.7216,59652.0,59647.0,0.083813]
[1726243982486,0.7216,59652.0,59639.0,0.2042]
[1726243982687,0.3608,59640.0,59639.0,0.288025]
[1726243983080,0.3608,59640.0,59639.0,1.391065]
[1726243983279,0.3608,59652.0,59639.0,1.47489]
[1726243983280,0.3608,59647.0,59639.0,1.47489]
[1726243983479,0.3608,59655.0,59654.0,0.083804]
[1726243983787,0.025,59664.0,59663.0,0.083791]
[1726243983985,0.011,59664.0,59663.0,0.083791]
[1726243984177,0.3608,59666.0,59665.0,0.083788]
[1726243985391,0.38293999,59666.0,59665.0,0.084788]
[1726243986374,0.39693999,59666.0,59665.0,0.085788]
[1726243988887,0.39693999,59666.0,59665.0,0.002]
[1726243989195,0.89973999,59666.0,59665.0,0.002]
[1726243990288,1.49973999,59666.0,59649.0,0.3608]
[1726243990493,0.3608,59657.0,59656.0,0.0838]
[1726243990894,0.3608,59657.0,59652.0,0.083806]
[1726243991179,0.6308,59654.0,59652.0,0.083806]
[1726243991386,0.6308,59654.0,59650.0,0.083809]
[1726243992085,0.6308,59654.0,59649.0,0.001]
[1726243992282,0.3608,59654.0,59652.0,0.001]
[1726243992483,0.4846,59653.0,59652.0,0.001]
[1726243992683,0.4846,59653.0,59650.0,0.002]
[1726243993487,0.4846,59653.0,59652.0,0.001]
[1726243994293,1.58752,59653.0,59652.0,0.001]
[1726243995095,1.61063035,59653.0,59643.0,0.083819]
[1726243995293,0.6308,59645.0,59644.0,0.083818]
[1726243996495,0.6308,59645.0,59639.0,0.083823]
[1726243996789,0.6308,59645.0,59633.0,0.4279]
[1726243996790,0.3608,59640.0,59633.0,0.4279]
[1726243996993,0.3608,59640.0,59639.0,0.083825]
[1726243997396,0.6308,59640.0,59639.0,0.083825]
[1726243998093,0.6428,59640.0,59639.0,0.084825]
[1726243998481,0.3728,59640.0,59639.0,0.084825]
[1726243998683,0.37542,59640.0,59639.0,0.084825]
[1726243998899,0.38440955,59640.0,59639.0,0.084825]
[1726243999286,0.38740955,59640.0,59639.0,0.084825]
[1726244001492,0.60020955,59640.0,59639.0,0.084825]
[1726244001890,0.38740955,59640.0,59639.0,0.084825]
[1726244002195,0.2141,59656.0,59639.0,0.084825]
[1726244002196,0.3608,59652.0,59651.0,0.083808]
[1726244002395,0.3608,59657.0,59656.0,0.083801]
[1726244002601,0.27,59665.0,59661.0,0.083793]
[1726244002901,0.27,59665.0,59650.0,0.27]
[1726244003088,0.27,59665.0,59661.0,0.083794]
[1726244003089,0.3608,59662.0,59661.0,0.083794]
[1726244003589,0.86364,59662.0,59645.0,0.0039]
[1726244003790,0.27838782,59665.0,59646.0,0.083815]
[1726244003791,0.3608,59649.0,59646.0,0.083815]
[1726244004096,0.3608,59656.0,59641.0,1.131261]
[1726244004097,0.3608,59656.0,59655.0,0.083802]
[1726244005460,0.3888,59656.0,59655.0,0.084802]
[1726244005586,0.3888,59656.0,59655.0,0.001]
[1726244005790,0.3888,59656.0,59650.0,0.083808]
[1726244005791,1.50079595,59656.0,59650.0,0.083808]
[1726244006103,0.6308,59651.0,59646.0,0.083814]
[1726244006290,0.3608,59648.0,59640.0,0.083823]
[1726244006503,0.3608,59642.0,59640.0,0.083823]
[1726244006685,0.3608,59642.0,59630.0,0.2057]
[1726244006686,0.3608,59642.0,59641.0,0.083822]
[1726244006995,0.3608,59642.0,59635.0,0.083829]
[1726244007302,0.3608,59636.0,59635.0,0.08383]
[1726244008598,0.3668,59636.0,59635.0,0.08583]
[1726244009192,0.3668,59636.0,59635.0,0.002]
[1726244009496,0.38976836,59636.0,59635.0,0.002]
[1726244010890,0.38976836,59636.0,59635.0,0.08583]
[1726244011089,0.38876836,59636.0,59635.0,0.08583]
[1726244011487,0.02796836,59636.0,59635.0,0.08583]
[1726244011795,0.02796836,59636.0,59635.0,0.44663]
[1726244012001,0.02796836,59636.0,59635.0,0.08583]
[1726244015707,0.02796836,59636.0,59635.0,0.002]